bitfinex-derivatives/quotes_BTCF0:USTF0_20250212
["timestamp","ask_amount","ask_price","bid_price","bid_amount"]
[1739321102095,0.01301887,96024.0,96022.0,0.2102953]
[1739321102393,0.2082776,96031.0,96024.0,0.2082904]
[1739321103694,0.2082776,96031.0,96024.0,0.2092904]
[1739321104201,0.22157264,96031.0,96024.0,0.2092904]
[1739321104499,0.22157264,96031.0,96025.0,0.2082896]
[1739321105600,0.22157264,96031.0,96025.0,0.2092896]
[1739321108702,0.01329504,96031.0,96026.0,0.2082881]
[1739321109008,0.85337451,96040.0,96026.0,0.2082881]
[1739321109009,0.77128,96040.0,96039.0,0.20826]
[1739321110404,0.77128,96040.0,96039.0,0.20926]
[1739321111003,0.00072,96040.0,96039.0,0.20926]
[1739321111601,0.00072,96040.0,96039.0,0.21026]
[1739321114708,0.29033231,96050.0,96041.0,0.2082557]
[1739321115297,0.08209451,96051.0,96041.0,0.2082557]
[1739321115500,0.01282474,96052.0,96041.0,0.2082557]
[1739321116010,0.01282474,96052.0,96041.0,0.2820557]
[1739321116410,0.08209451,96051.0,96041.0,0.2820557]
[1739321119899,0.2082393,96049.0,96041.0,0.2102557]
[1739321120305,0.08209451,96051.0,96041.0,0.002]
[1739321120306,0.20981598,96042.0,96041.0,0.002]
[1739321120803,0.2082659,96037.0,96035.0,0.36136]
[1739321121508,0.2082659,96037.0,96035.0,0.00056]
[1739321122009,0.5690659,96037.0,96035.0,0.00756]
[1739321122208,0.58165271,96037.0,96035.0,0.00756]
[1739321123208,0.37338681,96037.0,96035.0,0.00756]
[1739321123606,0.58165231,96037.0,96035.0,0.00756]
[1739321133020,1.35213231,96037.0,96035.0,0.00756]
[1739321134810,1.14386681,96037.0,96035.0,0.00756]
[1739321135018,1.21566681,96037.0,96036.0,0.2082665]
[1739321135212,1.14386681,96037.0,96036.0,0.2082665]
[1739321135818,0.78306681,96037.0,96036.0,0.2082665]
[1739321136420,0.78306681,96037.0,96036.0,0.2142665]
[1739321140843,0.77048,96037.0,96036.0,0.2142665]
[1739321149755,0.77048,96037.0,96036.0,0.006]
[1739321152249,0.5690604,96039.0,96036.0,0.006]
[1739321154048,0.3608,96039.0,96036.0,0.006]
[1739321154351,0.2082495,96044.0,96036.0,0.006]
[1739321154651,0.2082522,96043.0,96036.0,0.006]
[1739321158144,0.13768293,96046.0,96036.0,0.006]
[1739321158350,0.13768293,96046.0,96039.0,0.2082579]
[1739321159147,0.13768293,96046.0,96036.0,0.006]
[1739321159455,0.13768293,96046.0,96042.0,0.2082528]
[1739321159647,0.01261229,96046.0,96042.0,0.2082528]
[1739321159954,1.13124,96048.0,96042.0,0.2082528]
[1739321160155,0.09591541,96047.0,96042.0,0.2082528]
[1739321160748,0.09591541,96047.0,96044.0,0.2082478]
[1739321160957,0.0718,96046.0,96045.0,0.2082466]
[1739321161557,0.16771541,96047.0,96045.0,0.2082466]
[1739321162150,0.09591541,96047.0,96045.0,0.2082466]
[1739321166357,0.77044,96048.0,96047.0,0.2082426]
[1739321168061,0.77044,96048.0,96039.0,0.0413]
[1739321168255,1.20304,96048.0,96037.0,0.2082638]
[1739321168859,1.20304,96048.0,96025.0,0.01232064]
[1739321169060,0.33332454,96042.0,96034.0,0.2082697]
[1739321169262,0.33332454,96042.0,96039.0,0.005]
[1739321169857,1.13124,96048.0,96039.0,0.005]
[1739321170058,1.13124,96048.0,96038.0,0.12507064]
[1739321170267,1.13124,96048.0,96039.0,0.086]
[1739321170470,1.13124,96048.0,96043.0,0.2082509]
[1739321170761,0.77044,96048.0,96044.0,0.2082487]
[1739321170968,0.77044,96048.0,96039.0,0.086]
[1739321171468,0.13729305,96050.0,96039.0,0.086]
[1739321172162,0.13729305,96050.0,96045.0,0.2082462]
[1739321173368,0.01222241,96050.0,96045.0,0.2082462]
[1739321173566,0.280034,96051.0,96045.0,0.2082462]
[1739321173868,0.280034,96051.0,96045.0,0.2092462]
[1739321174362,0.280034,96051.0,96045.0,0.001]
[1739321175367,0.29263949,96051.0,96045.0,0.001]
[1739321176468,0.2082424,96048.0,96045.0,0.001]
[1739321176667,0.2082443,96047.0,96045.0,0.001]
[1739321177961,0.3608,96048.0,96032.0,0.00015623]
[1739321178157,0.5690718,96034.0,96032.0,0.00015623]
[1739321178358,0.1569,96033.0,96032.0,0.00015623]
[1739321179768,0.1569,96033.0,96032.0,0.00815623]
[1739321181476,0.1569,96033.0,96032.0,0.00715623]
[1739321182074,0.53051883,96033.0,96032.0,0.00715623]
[1739321182276,0.53051883,96033.0,96019.0,0.00056]
[1739321182568,0.3608,96021.0,96019.0,0.00056]
[1739321182771,0.4326,96021.0,96019.0,0.00056]
[1739321184662,0.4326,96021.0,96019.0,0.00956]
[1739321185478,0.44442454,96021.0,96019.0,0.00056]
[1739321186276,0.41788588,96021.0,96019.0,0.00056]
[1739321187378,0.41988588,96021.0,96019.0,0.00156]
[1739321188067,0.41988588,96021.0,96019.0,0.00056]
[1739321189178,0.0718,96020.0,96019.0,0.00056]
[1739321190678,0.0738,96020.0,96019.0,0.00056]
[1739321191971,0.0738,96020.0,96010.0,0.00171841]
[1739321193580,0.2821021,96020.0,96010.0,0.00671841]
[1739321194782,0.2083041,96019.0,96010.0,0.00671841]
[1739321195373,0.26068351,96020.0,96010.0,0.00671841]
[1739321195679,0.2083072,96018.0,96010.0,0.00671841]
[1739321195880,0.2083072,96018.0,96010.0,0.21504041]
[1739321196084,0.26068351,96020.0,96015.0,0.2083111]
[1739321196388,0.2103034,96019.0,96010.0,0.00671841]
[1739321196981,0.002,96018.0,96010.0,0.21504071]
[1739321197174,0.002,96018.0,96011.0,0.2083189]
[1739321197681,0.2103034,96019.0,96011.0,0.2083189]
[1739321198384,0.2103034,96019.0,96012.0,0.2083179]
[1739321198687,0.18688351,96013.0,96012.0,0.2083179]
[1739321200389,0.18888351,96013.0,96012.0,0.2083179]
[1739321200590,0.18888351,96013.0,96012.0,0.2113179]
[1739321201399,0.002,96013.0,96012.0,0.2113179]
[1739321208102,0.002,96013.0,96012.0,0.003]
[1739321208801,0.07853919,96013.0,96012.0,0.003]
[1739321209105,0.2083186,96012.0,96010.0,0.00171841]
[1739321210294,0.2083186,96012.0,96010.0,0.00671841]
[1739321210800,0.2103186,96012.0,96010.0,0.00671841]
[1739321211802,0.07653919,96011.0,96010.0,0.00671841]
[1739321212902,0.07653919,96011.0,96010.0,0.00571841]
[1739321213301,0.07853919,96011.0,96010.0,0.00571841]
[1739321215598,0.002,96011.0,96010.0,0.00571841]
[1739321218506,0.07376,96011.0,96010.0,0.00571841]
[1739321218803,0.08592082,96011.0,96010.0,0.00571841]
[1739321219406,0.29424162,96011.0,96010.0,0.00571841]
[1739321220104,0.01416082,96011.0,96010.0,0.00571841]
[1739321220295,0.01416082,96011.0,96010.0,0.21404131]
[1739321221607,0.07854456,96011.0,96010.0,0.21404131]
[1739321222802,0.07854456,96011.0,96010.0,0.25634131]
[1739321224212,0.07854456,96011.0,96010.0,0.25477913]
[1739321229218,0.002,96011.0,96010.0,0.25477913]
[1739321231418,0.002,96011.0,96010.0,0.25077913]
[1739321231615,0.002,96011.0,96010.0,0.26577913]
[1739321231816,0.24988368,96012.0,96010.0,0.26877913]
[1739321232211,0.18725172,96021.0,96019.0,0.2083033]
[1739321232418,0.18725172,96021.0,96020.0,0.3608]
[1739321234120,0.18725172,96021.0,96020.0,0.3648]
[1739321234625,0.1993038,96021.0,96020.0,0.004]
[1739321234821,0.2013038,96021.0,96020.0,0.004]
[1739321235027,0.07441567,96021.0,96020.0,0.004]
[1739321238426,0.15095453,96021.0,96020.0,0.004]
[1739321239036,0.35925353,96021.0,96020.0,0.004]
[1739321241634,0.28271467,96021.0,96020.0,0.004]
[1739321244931,0.22235108,96021.0,96020.0,0.004]
[1739321247534,0.01405208,96021.0,96020.0,0.2123012]
[1739321247837,0.01405208,96021.0,96020.0,0.004]
[1739321248038,0.05495208,96021.0,96020.0,0.004]
[1739321248238,0.09675208,96021.0,96020.0,0.004]
[1739321250324,0.09675208,96021.0,96010.0,0.00015623]
[1739321250325,0.2083207,96011.0,96010.0,0.00015623]
[1739321251434,0.2083207,96011.0,96000.0,0.00056]
[1739321251435,0.2083424,96001.0,96000.0,0.00056]
[1739321252138,0.2083489,95998.0,95983.0,0.2083808]
[1739321252639,0.1278,96001.0,95988.0,0.00015623]
[1739321252939,0.1278,96001.0,95991.0,0.2083629]
[1739321253134,0.1278,96001.0,96000.0,0.01]
[1739321254036,0.1278,96001.0,96000.0,0.011]
[1739321254237,0.13943652,96001.0,96000.0,0.011]
[1739321254439,0.13943652,96001.0,96000.0,0.01]
[1739321254635,0.14243652,96001.0,96000.0,0.01]
[1739321254832,0.14243652,96001.0,95997.0,0.00556248]
[1739321255032,0.35078002,96001.0,95997.0,0.00556248]
[1739321255628,0.14243652,96001.0,96000.0,0.002]
[1739321255834,0.35077892,96001.0,96000.0,0.002]
[1739321256442,0.35077892,96001.0,95997.0,0.00156248]
[1739321256644,0.35077892,96001.0,95997.0,0.00556248]
[1739321256840,0.01463652,96001.0,95997.0,0.00556248]
[1739321257039,0.01363652,96001.0,95997.0,0.00556248]
[1739321257643,0.09019258,96001.0,95997.0,0.00556248]
[1739321258142,0.09019258,96001.0,96000.0,0.002]
[1739321258845,0.09019258,96001.0,95997.0,0.00156248]
[1739321259032,0.09019258,96001.0,95997.0,0.00556248]
[1739321259637,0.09019258,96001.0,95997.0,0.004]
[1739321260536,0.07655606,96000.0,95997.0,0.004]
[1739321261346,0.07655606,96000.0,95989.0,0.208368]
[1739321261546,0.20171827,96000.0,95989.0,0.208368]
[1739321262050,0.20171827,96000.0,95997.0,0.004]
[1739321262246,0.07655606,96000.0,95997.0,0.004]
[1739321262553,0.07655606,96000.0,95998.0,0.1214]
[1739321262852,0.07855606,96000.0,95998.0,0.1214]
[1739321263937,0.002,96000.0,95998.0,0.1214]
[1739321264138,0.002,96000.0,95999.0,0.3608]
[1739321264551,0.002,96000.0,95999.0,0.5691468]
[1739321265458,0.002,96000.0,95999.0,0.5711468]
[1739321266144,0.003,96000.0,95999.0,0.5691468]
[1739321266344,0.003,96000.0,95999.0,0.5781468]
[1739321266752,0.001,96000.0,95999.0,0.5781468]
[1739321267753,0.001,96000.0,95999.0,0.5761468]
[1739321270449,0.001,96000.0,95999.0,0.5691468]
[1739321270646,0.001,96000.0,95999.0,0.5761468]
[1739321276562,0.12516221,96010.0,96009.0,0.2083251]
[1739321276760,0.2083194,96012.0,96009.0,0.2083251]
[1739321276946,0.2083194,96012.0,96011.0,0.2083208]
[1739321277153,0.2083194,96012.0,95999.0,0.3678]
[1739321277154,0.08339023,96018.0,96013.0,0.2083164]
[1739321277364,0.01163023,96018.0,96016.0,0.2083092]
[1739321277659,0.07172,96025.0,96021.0,0.2082991]
[1739321278453,0.2082725,96034.0,96021.0,0.2082991]
[1739321278657,0.00156248,96030.0,96021.0,0.2082991]
[1739321279047,0.00156248,96030.0,96021.0,0.3327991]
[1739321280160,0.00615596,96022.0,96021.0,0.3337991]
[1739321280553,0.00815596,96022.0,96021.0,0.3337991]
[1739321282650,0.00815596,96022.0,96021.0,0.2522991]
[1739321282855,0.00815596,96022.0,96021.0,0.2092991]
[1739321283561,0.00815596,96022.0,96021.0,0.2932991]
[1739321284364,0.00815596,96022.0,96021.0,0.2092991]
[1739321289170,0.00815596,96022.0,96021.0,0.001]
[1739321290264,0.00815596,96022.0,96012.0,0.00015623]
[1739321290470,0.13331817,96022.0,96012.0,0.00015623]
[1739321291371,0.208302,96020.0,96012.0,0.00015623]
[1739321293277,0.212302,96020.0,96012.0,0.00015623]
[1739321293466,0.214302,96020.0,96012.0,0.00015623]
[1739321293663,0.210302,96020.0,96014.0,0.2083129]
[1739321293866,0.214302,96020.0,96014.0,0.2083129]
[1739321294066,0.22608816,96020.0,96014.0,0.2083129]
[1739321294274,0.22508816,96020.0,96014.0,0.2083129]
[1739321294777,0.01678616,96020.0,96019.0,0.2083034]
[1739321294977,0.01578616,96020.0,96019.0,0.2083034]
[1739321295670,0.004,96020.0,96019.0,0.2083034]
[1739321295871,0.002,96020.0,96019.0,0.5691034]
[1739321296072,0.002,96020.0,96019.0,0.3608]
[1739321296474,0.004,96020.0,96019.0,0.3608]
[1739321296776,0.004,96020.0,96019.0,0.002]
[1739321296976,0.00015596,96022.0,96019.0,0.002]
[1739321297166,0.004,96020.0,96019.0,0.2103034]
[1739321297978,0.004,96020.0,96019.0,0.2083034]
[1739321298675,0.08053499,96020.0,96019.0,0.2083034]
[1739321299077,0.07653499,96020.0,96019.0,0.2083034]
[1739321299276,0.08053499,96020.0,96019.0,0.2083034]
[1739321299473,0.08053499,96020.0,96019.0,0.5691034]
[1739321299672,0.07953499,96020.0,96019.0,0.5691034]
[1739321300266,0.08053499,96020.0,96019.0,0.5691034]
[1739321301078,0.08153499,96020.0,96019.0,0.5691034]
[1739321301678,0.07753499,96020.0,96019.0,0.5691034]
[1739321301878,0.08053499,96020.0,96019.0,0.5691034]
[1739321302079,0.004,96020.0,96019.0,0.5691034]
[1739321302281,0.001,96020.0,96019.0,0.5691034]
[1739321302483,0.004,96020.0,96019.0,0.5691034]
[1739321302685,0.003,96020.0,96019.0,0.5691034]
[1739321302874,0.003,96020.0,96019.0,0.5701034]
[1739321305978,0.24936231,96039.0,96038.0,0.2082622]
[1739321307087,0.25136231,96039.0,96038.0,0.2092622]
[1739321308081,0.002,96039.0,96038.0,0.2092622]
[1739321308281,0.007,96039.0,96038.0,0.2102622]
[1739321308978,0.002,96039.0,96038.0,0.2092622]
[1739321309178,0.007,96039.0,96038.0,0.2102622]
[1739321311687,0.08351614,96039.0,96038.0,0.2102622]
[1739321314192,0.08351614,96039.0,96038.0,0.2246173]
[1739321314392,0.08351614,96039.0,96038.0,0.2964973]
[1739321317197,0.07079964,96039.0,96038.0,0.2964973]
[1739321317394,4e-08,96039.0,96038.0,0.5964973]
[1739321317991,4e-08,96039.0,96038.0,0.71081846]
[1739321318389,0.00088001,96055.0,96047.0,0.2082427]
[1739321318595,0.01473453,96071.0,96047.0,0.5690427]
[1739321318785,0.07184,96075.0,96047.0,0.5690427]
[1739321319390,0.01500679,96075.0,96047.0,0.5690427]
[1739321319588,0.00215623,96048.0,96047.0,0.5690427]
[1739321321792,0.00215623,96048.0,96047.0,0.68336386]
[1739321322200,3e-08,96048.0,96047.0,0.98336386]
[1739321324300,0.84236,96080.0,96047.0,0.98336386]
[1739321324301,0.7704,96080.0,96078.0,0.2081755]
[1739321324491,0.0425,96092.0,96079.0,0.3608]
[1739321324696,0.0425,96092.0,96080.0,0.12516221]
[1739321324906,0.0425,96092.0,96087.0,0.2081551]
[1739321325294,0.0425,96092.0,96091.0,0.2081472]
[1739321327707,0.0425,96092.0,96091.0,0.2091472]
[1739321328302,0.0425,96092.0,96091.0,0.2101472]
[1739321329507,0.0425,96092.0,96091.0,0.002]
[1739321339415,0.0777,96095.0,96094.0,0.2081408]
[1739321340715,0.2858393,96095.0,96094.0,0.002]
[1739321341922,0.0777,96095.0,96094.0,0.002]
[1739321342721,0.0777,96095.0,96094.0,0.2101408]
[1739321344217,0.0777,96095.0,96094.0,0.002]
[1739321345820,0.4385,96095.0,96094.0,0.002]
[1739321348419,0.0777,96095.0,96094.0,0.002]
[1739321349015,0.0777,96095.0,96079.0,0.3608]
[1739321349016,0.2081421,96094.0,96079.0,0.3608]
[1739321349218,0.2081649,96083.0,96079.0,0.3608]
[1739321349420,0.2477677,96082.0,96076.0,0.20833555]
[1739321350123,0.2477677,96082.0,96079.0,0.001]
[1739321350627,0.2477677,96082.0,96078.0,0.2081741]
[1739321351317,0.0396,96082.0,96079.0,0.001]
[1739321351518,0.0396,96082.0,96079.0,0.2091727]
[1739321351720,0.0396,96082.0,96079.0,0.2081727]
[1739321351921,0.0396,96082.0,96080.0,0.2081695]
[1739321352929,0.2081571,96087.0,96080.0,0.2081695]
[1739321353231,0.2081571,96087.0,96082.0,0.2081659]
[1739321353429,0.12516221,96090.0,96082.0,0.2081659]
[1739321354135,0.001,96087.0,96082.0,0.2081659]
[1739321354434,0.001,96087.0,96086.0,0.2081581]
[1739321354617,0.0384,96095.0,96090.0,0.2081484]
[1739321354618,0.01479165,96094.0,96090.0,0.2081484]
[1739321354822,0.0384,96095.0,96082.0,0.001]
[1739321355021,0.0384,96095.0,96092.0,0.2081435]
[1739321355217,0.0384,96095.0,96093.0,0.2081421]
[1739321355418,0.1,96100.0,96095.0,0.2081368]
[1739321356825,0.11484755,96100.0,96095.0,0.2081368]
[1739321357034,0.11584755,96100.0,96095.0,0.2091368]
[1739321357433,0.11584755,96100.0,96095.0,0.2101368]
[1739321361125,0.32397645,96100.0,96095.0,0.002]
[1739321363529,0.2081333,96098.0,96095.0,0.002]
[1739321363729,0.0389,96097.0,96095.0,0.002]
[1739321363934,0.2081365,96096.0,96095.0,0.002]
[1739321365628,0.2081365,96096.0,96095.0,0.001]
[1739321365831,0.2081365,96096.0,96095.0,0.002]
[1739321366233,0.2081365,96096.0,96095.0,0.001]
[1739321366535,0.2091365,96096.0,96095.0,0.002]
[1739321368734,0.001,96096.0,96095.0,0.002]
[1739321369836,0.0077245,96103.0,96095.0,0.002]
[1739321370342,0.2081285,96100.0,96095.0,0.002]
[1739321370730,0.3608,96099.0,96095.0,0.002]
[1739321370931,0.2081352,96097.0,96095.0,0.002]
[1739321371943,4.164e-05,96096.0,96095.0,0.002]
[1739321372340,4.164e-05,96096.0,96095.0,0.001]
[1739321372533,0.20817954,96096.0,96095.0,0.001]
[1739321372746,4.164e-05,96096.0,96095.0,0.001]
[1739321372935,4.164e-05,96096.0,96095.0,0.2091387]
[1739321373641,4.164e-05,96096.0,96095.0,0.5699387]
[1739321374242,0.61372808,96105.0,96097.0,0.2081335]
[1739321374545,0.61372808,96105.0,96099.0,0.208129]
[1739321375246,0.61372808,96105.0,96104.0,0.2081192]
[1739321375247,0.60001527,96105.0,96104.0,0.2081192]
[1739321376643,0.60001527,96105.0,96104.0,0.2091192]
[1739321376943,0.60001527,96105.0,96104.0,0.2101192]
[1739321377144,0.01353766,96114.0,96112.0,0.2080998]
[1739321377342,0.12516221,96120.0,96112.0,0.2080998]
[1739321377541,0.33324671,96120.0,96112.0,0.2080998]
[1739321377743,0.12516221,96120.0,96104.0,0.002]
[1739321377953,0.12516221,96114.0,96104.0,0.002]
[1739321378243,0.12516221,96114.0,96107.0,0.2081119]
[1739321378639,0.01565998,96116.0,96109.0,0.2081075]
[1739321378940,0.01565998,96116.0,96112.0,0.001]
[1739321379145,0.01565998,96116.0,96112.0,0.002]
[1739321379546,0.01565998,96116.0,96112.0,0.001]
[1739321379855,0.01565998,96116.0,96109.0,0.2091075]
[1739321380145,0.01565998,96116.0,96112.0,0.001]
[1739321381550,0.01565998,96116.0,96112.0,0.002]
[1739321382151,0.01565998,96116.0,96113.0,0.2080988]
[1739321382539,0.01565998,96116.0,96114.0,0.2080968]
[1739321382945,0.01409878,96116.0,96114.0,0.5688968]
[1739321383146,0.34286714,96122.0,96121.0,0.2080823]
[1739321385356,0.34286714,96122.0,96121.0,0.2090823]
[1739321385557,0.34286714,96122.0,96121.0,0.2100823]
[1739321387454,0.2080558,96134.0,96121.0,0.002]
[1739321388550,0.2080558,96134.0,96121.0,0.001]
[1739321388749,0.2080558,96134.0,96121.0,0.002]
[1739321389055,0.2080558,96134.0,96129.0,0.2080646]
[1739321390345,0.2080558,96134.0,96129.0,0.2090646]
[1739321390856,0.2080558,96134.0,96129.0,0.2100646]
[1739321391246,0.2080558,96134.0,96130.0,0.2080624]
[1739321392253,0.2080558,96134.0,96130.0,0.2090624]
[1739321392454,0.2080558,96134.0,96130.0,0.2100624]
[1739321395660,0.01386368,96137.0,96130.0,0.2100624]
[1739321395861,0.208046,96138.0,96130.0,0.2100624]
[1739321396953,0.208046,96138.0,96130.0,0.2090624]
[1739321397161,0.208046,96138.0,96130.0,0.2100624]
[1739321397363,0.37482195,96140.0,96130.0,0.002]
[1739321397566,0.37482195,96140.0,96136.0,0.2080491]
[1739321398064,0.37482195,96140.0,96130.0,0.002]
[1739321398266,0.37482195,96140.0,96138.0,0.2080437]
[1739321398475,0.01402195,96140.0,96138.0,0.2080437]
[1739321398771,0.12516221,96150.0,96142.0,0.2080361]
[1739321399156,0.12516221,96150.0,96146.0,0.2080277]
[1739321399463,0.1191,96154.0,96146.0,0.2080277]
[1739321399464,0.37441887,96148.0,96146.0,0.2080277]
[1739321400259,0.37441887,96148.0,96146.0,0.2090277]
[1739321400867,0.3608,96148.0,96146.0,0.2100277]
[1739321401575,0.09580995,96147.0,96146.0,0.2100277]
[1739321403081,0.09580995,96147.0,96146.0,0.2090277]
[1739321403280,0.09580995,96147.0,96146.0,0.2100277]
[1739321403485,0.09580995,96147.0,96146.0,0.002]
[1739321405579,0.10998492,96147.0,96146.0,0.002]
[1739321406080,0.10998492,96147.0,96122.0,0.07187607]
[1739321406081,0.10998492,96147.0,96122.0,0.00015607]
[1739321406286,0.2080672,96128.0,96122.0,0.00015607]
[1739321407982,0.2080672,96128.0,96127.0,0.002]
[1739321409286,0.2090672,96128.0,96127.0,0.001]
[1739321409784,0.2080727,96126.0,96122.0,0.00015607]
[1739321409986,0.208078,96123.0,96122.0,0.00015607]
[1739321411282,0.209078,96123.0,96122.0,0.00015607]
[1739321411684,0.210078,96123.0,96122.0,0.00015607]
[1739321413091,0.002,96123.0,96122.0,0.00015607]
[1739321414980,0.002,96123.0,96122.0,0.36095607]
[1739321417092,0.002,96123.0,96122.0,0.00015607]
[1739321426096,0.002,96123.0,96122.0,0.36095607]
[1739321427198,0.0757,96149.0,96122.0,0.36095607]
[1739321427402,0.2080306,96145.0,96139.0,0.12516221]
[1739321427602,0.3608,96150.0,96143.0,0.2080339]
[1739321427992,0.3608,96150.0,96147.0,0.2080247]
[1739321428796,0.3618,96150.0,96147.0,0.2080247]
[1739321429604,0.3618,96150.0,96147.0,0.2090247]
[1739321431205,0.3608,96150.0,96147.0,0.2100247]
[1739321432307,0.001,96156.0,96148.0,0.5688227]
[1739321432600,0.001,96156.0,96153.0,0.208012]
[1739321432601,0.31113205,96155.0,96153.0,0.208012]
[1739321432805,0.32883506,96155.0,96153.0,0.208012]
[1739321433108,0.31113205,96155.0,96153.0,0.208012]
[1739321434405,0.31113205,96155.0,96153.0,0.209012]
[1739321435002,0.001,96156.0,96153.0,0.209012]
[1739321435203,0.001,96156.0,96153.0,0.210012]
[1739321435600,0.001,96156.0,96153.0,0.002]
[1739321435798,0.2080109,96154.0,96153.0,0.002]
[1739321437816,0.2080109,96154.0,96153.0,0.001]
[1739321438111,0.001,96156.0,96155.0,0.2080088]
[1739321440506,0.12516221,96170.0,96155.0,0.001]
[1739321440707,0.2079856,96166.0,96158.0,0.2080015]
[1739321442011,0.2079882,96165.0,96158.0,0.2090015]
[1739321442210,0.2079882,96165.0,96158.0,0.2100015]
[1739321443617,0.2079882,96165.0,96160.0,0.2079973]
[1739321445111,0.2079882,96165.0,96160.0,0.2089973]
[1739321445411,0.2079882,96165.0,96160.0,0.2099973]
[1739321448411,0.2079882,96165.0,96160.0,0.2089973]
[1739321450311,0.2079917,96163.0,96160.0,0.2089973]
[1739321451404,0.2079917,96163.0,96160.0,0.2079973]
[1739321451608,0.2079917,96163.0,96160.0,0.2089973]
[1739321457217,0.3608,96166.0,96160.0,0.2089973]
[1739321458207,0.3608,96166.0,96160.0,0.2079973]
[1739321458414,0.3608,96166.0,96160.0,0.2089973]
[1739321461916,0.5687868,96166.0,96160.0,0.2089973]
[1739321463423,0.2079868,96166.0,96160.0,0.2089973]
[1739321463721,0.5687868,96166.0,96160.0,0.2089973]
[1739321464316,0.2079915,96163.0,96160.0,0.001]
[1739321465421,0.2079915,96163.0,96158.0,0.0716]
[1739321465721,0.2079915,96163.0,96160.0,0.001]
[1739321467721,0.2079915,96163.0,96158.0,0.2826019]
[1739321468323,0.2079915,96163.0,96158.0,0.0746]
[1739321468525,0.3608,96166.0,96162.0,0.2079923]
[1739321468826,0.3608,96166.0,96160.0,0.001]
[1739321469022,0.3608,96166.0,96163.0,0.2079908]
[1739321469325,0.2079872,96165.0,96163.0,0.2079908]
[1739321469517,0.2079872,96165.0,96158.0,0.0746]
[1739321469918,0.2079899,96164.0,96158.0,0.0746]
[1739321471127,0.2079899,96164.0,96158.0,0.0716]
[1739321471330,0.2079924,96163.0,96158.0,0.0716]
[1739321471723,0.3608,96166.0,96158.0,0.0716]
[1739321472024,0.2079971,96161.0,96158.0,0.0746]
[1739321472920,0.2079993,96160.0,96158.0,0.003]
[1739321473119,0.2437993,96160.0,96158.0,0.003]
[1739321473321,0.0658,96159.0,96158.0,0.003]
[1739321473726,0.2080347,96143.0,96142.0,0.00015607]
[1739321475526,0.2080347,96143.0,96142.0,0.01515607]
[1739321476227,0.2080347,96143.0,96142.0,0.01815607]
[1739321481229,0.2766347,96143.0,96142.0,0.01815607]
[1739321481425,0.3098347,96143.0,96142.0,0.01815607]
[1739321482532,0.3098347,96143.0,96142.0,0.01015607]
[1739321482735,0.3098347,96143.0,96142.0,0.00715607]
[1739321484638,0.3108347,96143.0,96142.0,0.00015607]
[1739321484832,0.1028,96143.0,96120.0,0.2080826]
[1739321485029,0.3608,96128.0,96120.0,0.2080826]
[1739321485837,0.16222581,96128.0,96120.0,0.2080826]
[1739321486039,0.16222581,96128.0,96125.0,0.12693471]
[1739321487637,0.16222581,96128.0,96125.0,0.11493471]
[1739321487841,0.16222581,96128.0,96125.0,0.12593471]
[1739321488534,0.2080694,96127.0,96125.0,0.12593471]
[1739321489542,0.1002,96126.0,96125.0,0.12593471]
[1739321489744,0.1002,96126.0,96125.0,0.013]
[1739321490254,0.2080889,96118.0,96117.0,0.00015598]
[1739321490645,0.3608,96119.0,96099.0,0.0676]
[1739321490946,0.12476626,96109.0,96093.0,0.36136]
[1739321491147,0.12476626,96103.0,96093.0,0.3608]
[1739321491345,0.2081394,96095.0,96093.0,0.3608]
[1739321492048,0.2081287,96100.0,96093.0,0.3608]
[1739321492551,0.2081308,96099.0,96093.0,0.3748]
[1739321493256,0.02188563,96102.0,96093.0,0.3748]
[1739321493446,0.2081379,96096.0,96093.0,0.3748]
[1739321493642,0.12476626,96103.0,96093.0,0.3748]
[1739321493643,0.2081402,96095.0,96093.0,0.3778]
[1739321494046,0.2081402,96095.0,96093.0,0.3738]
[1739321494241,0.2081402,96095.0,96093.0,0.3758]
[1739321494846,0.2091402,96095.0,96093.0,0.3758]
[1739321495756,0.2091402,96095.0,96093.0,0.3768]
[1739321502160,0.2091402,96095.0,96093.0,0.016]
[1739321513267,0.2091402,96095.0,96093.0,0.013]
[1739321513461,0.003,96095.0,96084.0,0.00171656]
[1739321513665,0.33290796,96094.0,96084.0,0.00171656]
[1739321513870,0.40454796,96094.0,96084.0,0.00171656]
[1739321514660,0.2081443,96093.0,96084.0,0.00671656]
[1739321514856,0.19640626,96094.0,96084.0,0.00671656]
[1739321515061,0.32117252,96094.0,96084.0,0.00671656]
[1739321515370,0.2081593,96086.0,96084.0,0.00671656]
[1739321516570,0.2091593,96086.0,96084.0,0.00671656]
[1739321519064,0.001,96086.0,96084.0,0.21487806]
[1739321520172,0.001,96086.0,96084.0,0.00671656]
[1739321520365,0.2091588,96086.0,96084.0,0.00671656]
[1739321526877,0.07648869,96085.0,96084.0,0.00671656]
[1739321528280,0.07748869,96085.0,96084.0,0.00671656]
[1739321529580,0.001,96085.0,96084.0,0.00671656]
[1739321533483,0.001,96085.0,96084.0,0.21487906]
[1739321536085,0.001,96085.0,96084.0,0.00671656]
[1739321537286,0.001,96085.0,96084.0,0.00515607]
[1739321540892,0.001,96085.0,96084.0,0.21331857]
[1739321542090,0.07164,96110.0,96103.0,0.2081213]
[1739321542292,0.14867817,96113.0,96103.0,0.2081213]
[1739321543280,0.07273275,96104.0,96103.0,0.2091213]
[1739321543888,0.07373275,96104.0,96103.0,0.2091213]
[1739321544190,0.01015607,96104.0,96103.0,0.001]
[1739321544391,0.08179607,96104.0,96087.0,0.2081553]
[1739321544598,0.61033252,96097.0,96084.0,0.00015607]
[1739321544784,0.48556626,96097.0,96084.0,0.00015607]
[1739321545793,0.48656626,96097.0,96084.0,0.00915607]
[1739321546093,0.2081502,96090.0,96084.0,0.00915607]
[1739321546293,0.2081418,96094.0,96086.0,0.2081574]
[1739321547088,0.12576626,96097.0,96084.0,0.00915607]
[1739321547289,0.2081458,96092.0,96084.0,0.01015607]
[1739321547794,0.2081478,96091.0,96084.0,0.00915607]
[1739321548185,0.07164,96093.0,96084.0,0.00015607]
[1739321548389,0.2081508,96090.0,96084.0,0.00515607]
[1739321549891,0.07648391,96091.0,96084.0,0.00515607]
[1739321550187,0.07648391,96091.0,96088.0,0.2081534]
[1739321550388,0.09838,96091.0,96088.0,0.2081534]
[1739321550688,0.09938,96091.0,96088.0,0.2081534]